fUST/lending_fUST_20260530
["ID","MTS","AMOUNT","RATE_DAILY","PERIOD"]
[423394818,1780081852000,-171.720023,0.00014696,2]
[423394824,1780081852000,-182.594848,0.00014697,2]
[423394825,1780081852000,-182.59485679,0.00014697,2]
[423394838,1780081852000,-169.856537,0.00014837,2]
[423394821,1780081852000,-171.720025,0.00014696,2]
[423394822,1780081852000,-182.594848,0.00014697,2]
[423394827,1780081852000,-228.910045,0.000147,2]
[423394826,1780081852000,-1072.76527255,0.000147,2]
[423394837,1780081852000,-169.856537,0.00014837,2]
[423394828,1780081852000,-170.761633,0.000147,2]
[423394830,1780081852000,-267.31801017,0.00014723,2]
[423394829,1780081852000,-164.906515,0.000147,2]
[423394833,1780081852000,-587.0,0.00014768,2]
[423394831,1780081852000,-342.50955204,0.00014739,2]
[423394834,1780081852000,-315.06963846,0.00014798,2]
[423394835,1780081852000,-359.71950723,0.00014798,2]
[423394832,1780081852000,-328.78037507,0.00014739,2]
[423394820,1780081852000,-171.720023,0.00014696,2]
[423394871,1780081852000,-500.0,0.00014933,2]
[423394819,1780081852000,-171.720023,0.00014696,2]
[423394874,1780081852000,-500.0,0.00014933,2]
[423394903,1780081852000,-500.0,0.00014933,2]
[423394912,1780081852000,-500.0,0.0001497,2]
[423394913,1780081852000,-500.0,0.0001497,2]
[423394902,1780081852000,-600.1,0.00014933,2]
[423394905,1780081852000,-602.53,0.00014936,2]
[423394904,1780081852000,-500.0,0.00014933,2]
[423394907,1780081852000,-500.0,0.00014936,2]
[423394906,1780081852000,-500.0,0.00014936,2]
[423394910,1780081852000,-500.0,0.0001497,2]
[423394909,1780081852000,-500.0,0.0001497,2]
[423394911,1780081852000,-500.0,0.0001497,2]
[423394915,1780081852000,-500.0,0.0001497,2]
[423394901,1780081852000,-500.0,0.00014933,2]
[423394925,1780081852000,-500.0,0.0001497,2]
[423394916,1780081852000,-500.0,0.0001497,2]
[423394914,1780081852000,-500.0,0.0001497,2]
[423394917,1780081852000,-500.0,0.0001497,2]
[423394924,1780081852000,-500.0,0.0001497,2]
[423394922,1780081852000,-500.0,0.0001497,2]
[423394920,1780081852000,-500.0,0.0001497,2]
[423394921,1780081852000,-500.0,0.0001497,2]
[423394926,1780081852000,-500.0,0.0001497,2]
[423394918,1780081852000,-500.0,0.0001497,2]
[423394919,1780081852000,-250.5,0.0001497,2]
[423394923,1780081852000,-500.0,0.0001497,2]
[423394875,1780081852000,-500.0,0.00014933,2]
[423394927,1780081852000,-500.0,0.0001497,2]
[423394898,1780081852000,-500.0,0.00014933,2]
[423394908,1780081852000,-1041.246195,0.0001495,2]
[423394896,1780081852000,-500.0,0.00014933,2]
[423394867,1780081852000,-971.53,0.00014932,2]
[423394868,1780081852000,-726.13,0.00014932,2]
[423394872,1780081852000,-551.31,0.00014933,2]
[423394899,1780081852000,-509.36,0.00014933,2]
[423394873,1780081852000,-500.0,0.00014933,2]
[423394877,1780081852000,-500.0,0.00014933,2]
[423394880,1780081852000,-510.86,0.00014933,2]
[423394887,1780081852000,-282.69186123,0.00014933,2]
[423394878,1780081852000,-500.0,0.00014933,2]
[423394888,1780081852000,-1544.42,0.00014933,2]
[423394879,1780081852000,-500.0,0.00014933,2]
[423394876,1780081852000,-500.0,0.00014933,2]
[423394881,1780081852000,-949.66,0.00014933,2]
[423394884,1780081852000,-500.0,0.00014933,2]
[423394869,1780081852000,-500.0,0.00014933,2]
[423394885,1780081852000,-500.0,0.00014933,2]
[423394897,1780081852000,-549.44,0.00014933,2]
[423394892,1780081852000,-500.0,0.00014933,2]
[423394889,1780081852000,-500.0,0.00014933,2]
[423394891,1780081852000,-500.0,0.00014933,2]
[423394893,1780081852000,-500.0,0.00014933,2]
[423394894,1780081852000,-516.59,0.00014933,2]
[423394890,1780081852000,-500.0,0.00014933,2]
[423394895,1780081852000,-853.8463,0.00014933,2]
[423394883,1780081852000,-531.61,0.00014933,2]
[423394886,1780081852000,-500.0,0.00014933,2]
[423394900,1780081852000,-500.0,0.00014933,2]
[423394882,1780081852000,-500.0,0.00014933,2]
[423394930,1780081853000,-79808.7449332,0.00015,2]
[423394929,1780081853000,-500.0,0.0001497,2]
[423394928,1780081853000,-500.0,0.0001497,2]
[423394933,1780081933000,2799.87023553,0.00018314,120]
[423394934,1780081933000,3105.62449348,0.00018724,120]
[423394937,1780081933000,3717.13300937,0.00019955,120]
[423394936,1780081933000,3609.72801762,0.00019545,120]
[423394938,1780081933000,3983.11532507,0.00020365,120]
[423394935,1780081933000,3411.37875142,0.00019135,120]
[423395047,1780082656000,1613.51309404,0.00018772,120]
[423395046,1780082656000,1618.91738627,0.0001952,120]
[423395048,1780082657000,1825.99857083,0.00020267,120]
[423395192,1780083033000,-18.34477539,8.304e-05,2]
[423395200,1780083033000,-300.0,9.458e-05,2]
[423395204,1780083033000,-300.0,9.458e-05,2]
[423395197,1780083033000,-1200.0,8.598e-05,2]
[423395184,1780083033000,-3223.14,8.097e-05,2]
[423395199,1780083033000,-766.26559469,8.6e-05,2]
[423395180,1780083033000,-1027.05,8.097e-05,2]
[423395182,1780083033000,-749.81,8.097e-05,2]
[423395191,1780083033000,-858.518491,8.179e-05,2]
[423395186,1780083033000,-1576.86,8.179e-05,2]
[423395206,1780083033000,-300.0,9.458e-05,2]
[423395203,1780083033000,-300.0,9.458e-05,2]
[423395218,1780083033000,-146.58885463,9.647e-05,2]
[423395195,1780083033000,-189.34795894,8.304e-05,2]
[423395226,1780083033000,-300.0,9.647e-05,2]
[423395216,1780083033000,-300.0,9.647e-05,2]
[423395210,1780083033000,-300.0,9.647e-05,2]
[423395212,1780083033000,-300.0,9.647e-05,2]
[423395214,1780083033000,-300.0,9.647e-05,2]
[423395227,1780083033000,-147.86481892,9.647e-05,2]
[423395223,1780083033000,-202.05995496,9.647e-05,2]
[423395221,1780083033000,-97.94004504,9.647e-05,2]
[423395208,1780083033000,-480.0,9.458e-05,2]
[423395219,1780083033000,-153.41114537,9.647e-05,2]
[423395225,1780083033000,-300.0,9.647e-05,2]
[423395252,1780083038000,-300.0,9.647e-05,2]
[423395245,1780083038000,-152.13518108,9.647e-05,2]
[423395248,1780083038000,-85.68496674,9.647e-05,2]
[423395246,1780083038000,-300.0,9.647e-05,2]
[423395250,1780083038000,-300.0,9.647e-05,2]
[423395247,1780083038000,-300.0,9.647e-05,2]
[423395249,1780083038000,-214.31503326,9.647e-05,2]
[423395262,1780083038000,-500.0,0.0001192,2]
[423395251,1780083038000,-300.0,9.647e-05,2]
[423395253,1780083038000,-600.0,9.839e-05,2]
[423395254,1780083038000,-245.07742651,0.00010303,2]
[423395255,1780083038000,-420.0,0.00010404,2]
[423395257,1780083038000,-587.0,0.00011444,2]
[423395256,1780083038000,-720.0,0.00010823,2]
[423395260,1780083038000,-813.47,0.0001192,2]
[423395258,1780083038000,-864.0,0.00011905,2]
[423395261,1780083038000,-500.0,0.0001192,2]
[423395259,1780083038000,-500.0,0.0001192,2]
[423395309,1780083039000,-500.0,0.00012742,2]
[423395306,1780083039000,-500.0,0.00012742,2]
[423395316,1780083039000,-500.0,0.00013011,2]
[423395300,1780083039000,-823.0,0.00012589,2]
[423395297,1780083039000,-500.0,0.00012468,2]
[423395299,1780083039000,-787.1,0.00012468,2]
[423395296,1780083039000,-500.0,0.00012468,2]
[423395301,1780083039000,-500.0,0.00012742,2]
[423395305,1780083039000,-500.0,0.00012742,2]
[423395302,1780083039000,-813.47,0.00012742,2]
[423395294,1780083039000,-500.0,0.00012468,2]
[423395298,1780083039000,-950.2,0.00012468,2]
[423395311,1780083039000,-787.1,0.00012742,2]
[423395322,1780083039000,-11228.46,0.00013011,2]
[423395307,1780083039000,-523.94,0.00012742,2]
[423395308,1780083039000,-500.0,0.00012742,2]
[423395315,1780083039000,-556.45,0.00013011,2]
[423395312,1780083039000,-500.0,0.00013011,2]
[423395313,1780083039000,-500.0,0.00013011,2]
[423395314,1780083039000,-700.46,0.00013011,2]
[423395317,1780083039000,-536.45,0.00013011,2]
[423395319,1780083039000,-500.0,0.00013011,2]
[423395321,1780083039000,-500.0,0.00013011,2]
[423395318,1780083039000,-524.47,0.00013011,2]
[423395320,1780083039000,-1110.6,0.00013011,2]
[423395328,1780083039000,-500.0,0.00013012,2]
[423395295,1780083039000,-523.94,0.00012468,2]
[423395324,1780083039000,-500.0,0.00013011,2]
[423395310,1780083039000,-950.2,0.00012742,2]
[423395304,1780083039000,-500.0,0.00012742,2]
[423395278,1780083039000,-813.47,0.00012194,2]
[423395292,1780083039000,-500.0,0.00012468,2]
[423395323,1780083039000,-500.0,0.00013011,2]
[423395263,1780083039000,-500.0,0.0001192,2]
[423395264,1780083039000,-500.0,0.0001192,2]
[423395265,1780083039000,-523.94,0.0001192,2]
[423395267,1780083039000,-500.0,0.0001192,2]
[423395271,1780083039000,-3100.9103886,0.00011921,2]
[423395268,1780083039000,-950.2,0.0001192,2]
[423395273,1780083039000,-164.35015597,0.00012094,2]
[423395275,1780083039000,-500.0,0.00012193,2]
[423395276,1780083039000,-546.95236387,0.00012193,2]
[423395270,1780083039000,-787.1,0.0001192,2]
[423395266,1780083039000,-500.0,0.0001192,2]
[423395269,1780083039000,-247.64,0.0001192,2]
[423395274,1780083039000,-500.0,0.00012193,2]
[423395277,1780083039000,-500.0,0.00012194,2]
[423395272,1780083039000,-151.06,0.00012,2]
[423395279,1780083039000,-500.0,0.00012194,2]
[423395282,1780083039000,-500.0,0.00012194,2]
[423395281,1780083039000,-500.0,0.00012194,2]
[423395289,1780083039000,-500.0,0.00012468,2]
[423395290,1780083039000,-813.47,0.00012468,2]
[423395280,1780083039000,-500.0,0.00012194,2]
[423395283,1780083039000,-523.94,0.00012194,2]
[423395285,1780083039000,-500.0,0.00012194,2]
[423395284,1780083039000,-500.0,0.00012194,2]
[423395287,1780083039000,-787.1,0.00012194,2]
[423395286,1780083039000,-950.2,0.00012194,2]
[423395288,1780083039000,-282.46211869,0.00012304,2]
[423395293,1780083039000,-500.0,0.00012468,2]
[423395303,1780083039000,-500.0,0.00012742,2]
[423395326,1780083039000,-274.534202,0.00013011,2]
[423395291,1780083039000,-500.0,0.00012468,2]
[423395325,1780083039000,-500.0,0.00013011,2]
[423395356,1780083039000,-500.0,0.00013013,2]
[423395359,1780083039000,-500.0,0.00013013,2]
[423395364,1780083039000,-500.0,0.00013013,2]
[423395358,1780083039000,-500.0,0.00013013,2]
[423395366,1780083039000,-500.0,0.00013013,2]
[423395368,1780083039000,-454.36,0.00013013,2]
[423395370,1780083039000,-501.13424004,0.00013013,2]
[423395371,1780083039000,-500.0,0.00013013,2]
[423395373,1780083039000,-630.87,0.00013013,2]
[423395372,1780083039000,-500.0,0.00013013,2]
[423395374,1780083039000,-500.0,0.00013013,2]
[423395375,1780083039000,-500.0,0.00013013,2]
[423395376,1780083039000,-500.0,0.00013013,2]
[423395379,1780083039000,-500.0,0.00013013,2]
[423395380,1780083039000,-500.0,0.00013013,2]
[423395369,1780083039000,-500.0,0.00013013,2]
[423395377,1780083039000,-500.0,0.00013013,2]
[423395378,1780083039000,-445.23521232,0.00013013,2]
[423395381,1780083039000,-500.0,0.00013013,2]
[423395383,1780083039000,-500.0,0.00013013,2]
[423395382,1780083039000,-500.0,0.00013013,2]
[423395384,1780083039000,-500.0,0.00013013,2]
[423395386,1780083039000,-500.0,0.00013013,2]
[423395385,1780083039000,-500.0,0.00013013,2]
[423395389,1780083039000,-500.0,0.00013013,2]
[423395391,1780083039000,-500.0,0.00013013,2]
[423395390,1780083039000,-500.0,0.00013013,2]
[423395327,1780083039000,-500.0,0.00013012,2]
[423395388,1780083039000,-500.0,0.00013013,2]
[423395361,1780083039000,-500.0,0.00013013,2]
[423395365,1780083039000,-500.0,0.00013013,2]
[423395387,1780083039000,-500.0,0.00013013,2]
[423395363,1780083039000,-500.0,0.00013013,2]
[423395362,1780083039000,-500.0,0.00013013,2]
[423395331,1780083039000,-500.0,0.00013012,2]
[423395342,1780083039000,-500.0,0.00013012,2]
[423395341,1780083039000,-500.0,0.00013012,2]
[423395343,1780083039000,-500.0,0.00013012,2]
[423395330,1780083039000,-500.0,0.00013012,2]
[423395334,1780083039000,-500.0,0.00013012,2]
[423395333,1780083039000,-500.0,0.00013012,2]
[423395337,1780083039000,-500.0,0.00013012,2]
[423395335,1780083039000,-500.0,0.00013012,2]
[423395340,1780083039000,-500.0,0.00013012,2]
[423395332,1780083039000,-622.18,0.00013012,2]
[423395338,1780083039000,-500.0,0.00013012,2]
[423395339,1780083039000,-501.46988491,0.00013012,2]
[423395336,1780083039000,-500.0,0.00013012,2]
[423395329,1780083039000,-500.0,0.00013012,2]
[423395345,1780083039000,-1128.87,0.00013012,2]
[423395360,1780083039000,-500.0,0.00013013,2]
[423395367,1780083039000,-651.69,0.00013013,2]
[423395357,1780083039000,-500.0,0.00013013,2]
[423395352,1780083039000,-500.0,0.00013012,2]
[423395344,1780083039000,-287.99,0.00013012,2]
[423395351,1780083039000,-500.0,0.00013012,2]
[423395350,1780083039000,-500.0,0.00013012,2]
[423395349,1780083039000,-614.07,0.00013012,2]
[423395354,1780083039000,-527.07,0.00013012,2]
[423395348,1780083039000,-1626.21,0.00013012,2]
[423395353,1780083039000,-549.73,0.00013012,2]
[423395346,1780083039000,-500.0,0.00013012,2]
[423395347,1780083039000,-500.0,0.00013012,2]
[423395355,1780083039000,-500.0,0.00013012,2]
[423395443,1780083040000,-500.0,0.00013286,2]
[423395436,1780083040000,-500.0,0.00013286,2]
[423395434,1780083040000,-500.0,0.00013285,2]
[423395432,1780083040000,-11228.46,0.00013285,2]
[423395430,1780083040000,-1110.6,0.00013285,2]
[423395424,1780083040000,-700.46,0.00013285,2]
[423395426,1780083040000,-500.0,0.00013285,2]
[423395431,1780083040000,-500.0,0.00013285,2]
[423395428,1780083040000,-524.47,0.00013285,2]
[423395433,1780083040000,-500.0,0.00013285,2]
[423395427,1780083040000,-536.45,0.00013285,2]
[423395429,1780083040000,-500.0,0.00013285,2]
[423395446,1780083040000,-502.09431238,0.00013286,2]
[423395439,1780083040000,-418.92869078,0.00013286,2]
[423395438,1780083040000,-500.0,0.00013286,2]
[423395435,1780083040000,-500.0,0.00013286,2]
[423395440,1780083040000,-622.18,0.00013286,2]
[423395447,1780083040000,-500.0,0.00013286,2]
[423395442,1780083040000,-500.0,0.00013286,2]
[423395444,1780083040000,-500.0,0.00013286,2]
[423395441,1780083040000,-500.0,0.00013286,2]
[423395448,1780083040000,-500.0,0.00013286,2]
[423395450,1780083040000,-500.0,0.00013286,2]
[423395449,1780083040000,-500.0,0.00013286,2]
[423395459,1780083040000,-614.07,0.00013286,2]
[423395460,1780083040000,-500.0,0.00013286,2]
[423395425,1780083040000,-556.45,0.00013285,2]
[423395437,1780083040000,-500.0,0.00013286,2]
[423395423,1780083040000,-500.0,0.00013285,2]
[423395405,1780083040000,-500.0,0.00013013,2]
[423395422,1780083040000,-500.0,0.00013285,2]
[423395393,1780083040000,-500.0,0.00013013,2]
[423395394,1780083040000,-250.55,0.00013013,2]
[423395392,1780083040000,-500.0,0.00013013,2]
[423395396,1780083040000,-500.0,0.00013013,2]
[423395395,1780083040000,-500.0,0.00013013,2]
[423395397,1780083040000,-500.0,0.00013013,2]
[423395399,1780083040000,-500.0,0.00013013,2]
[423395406,1780083040000,-500.0,0.00013015,2]
[423395398,1780083040000,-500.0,0.00013013,2]
[423395407,1780083040000,-500.51424063,0.00013015,2]
[423395401,1780083040000,-500.0,0.00013013,2]
[423395403,1780083040000,-500.0,0.00013013,2]
[423395400,1780083040000,-500.0,0.00013013,2]
[423395421,1780083040000,-411.120357,0.00013196,2]
[423395404,1780083040000,-500.0,0.00013013,2]
[423395408,1780083040000,-500.0,0.00013015,2]
[423395411,1780083040000,-500.0,0.00013016,2]
[423395409,1780083040000,-500.0,0.00013016,2]
[423395419,1780083040000,-787.1,0.00013016,2]
[423395410,1780083040000,-813.47,0.00013016,2]
[423395412,1780083040000,-500.0,0.00013016,2]
[423395418,1780083040000,-950.2,0.00013016,2]
[423395414,1780083040000,-500.0,0.00013016,2]
[423395420,1780083040000,-1000.0,0.00013096,2]
[423395413,1780083040000,-500.0,0.00013016,2]
[423395415,1780083040000,-523.94,0.00013016,2]
[423395416,1780083040000,-500.0,0.00013016,2]
[423395417,1780083040000,-500.0,0.00013016,2]
[423395402,1780083040000,-500.0,0.00013013,2]
[423395454,1780083040000,-1128.87,0.00013286,2]
[423395457,1780083040000,-500.0,0.00013286,2]
[423395461,1780083040000,-188.94,0.00013286,2]
[423395489,1780083040000,-500.0,0.00013287,2]
[423395491,1780083040000,-500.0,0.00013287,2]
[423395492,1780083040000,-500.0,0.00013287,2]
[423395494,1780083040000,-500.0,0.00013287,2]
[423395495,1780083040000,-500.0,0.00013287,2]
[423395497,1780083040000,-500.0,0.00013287,2]
[423395493,1780083040000,-500.0,0.00013287,2]
[423395496,1780083040000,-500.0,0.00013287,2]
[423395500,1780083040000,-500.0,0.00013287,2]
[423395502,1780083040000,-500.0,0.00013287,2]
[423395504,1780083040000,-500.0,0.00013287,2]
[423395503,1780083040000,-500.0,0.00013287,2]
[423395506,1780083040000,-500.0,0.00013287,2]
[423395501,1780083040000,-500.0,0.00013287,2]
[423395508,1780083040000,-500.0,0.00013289,2]
[423395510,1780083040000,-813.47,0.0001329,2]
[423395511,1780083040000,-500.0,0.0001329,2]
[423395507,1780083040000,-500.0,0.00013287,2]
[423395509,1780083040000,-500.0,0.0001329,2]
[423395512,1780083040000,-500.0,0.0001329,2]
[423395514,1780083040000,-500.0,0.0001329,2]
[423395515,1780083040000,-523.94,0.0001329,2]
[423395516,1780083040000,-500.0,0.0001329,2]
[423395517,1780083040000,-500.0,0.0001329,2]
[423395518,1780083040000,-950.2,0.0001329,2]
[423395513,1780083040000,-500.0,0.0001329,2]
[423395452,1780083040000,-172.32,0.00013286,2]
[423395499,1780083040000,-500.0,0.00013287,2]
[423395490,1780083040000,-537.84,0.00013287,2]
[423395505,1780083040000,-500.0,0.00013287,2]
[423395488,1780083040000,-500.0,0.00013287,2]
[423395458,1780083040000,-1626.21,0.00013286,2]
[423395487,1780083040000,-500.0,0.00013287,2]
[423395456,1780083040000,-500.0,0.00013286,2]
[423395463,1780083040000,-549.73,0.00013286,2]
[423395473,1780083040000,-500.0,0.00013287,2]
[423395462,1780083040000,-500.0,0.00013286,2]
[423395465,1780083040000,-200.0,0.00013286,2]
[423395464,1780083040000,-527.07,0.00013286,2]
[423395468,1780083040000,-500.0,0.00013287,2]
[423395471,1780083040000,-500.0,0.00013287,2]
[423395469,1780083040000,-500.0,0.00013287,2]
[423395466,1780083040000,-500.0,0.00013286,2]
[423395470,1780083040000,-500.0,0.00013287,2]
[423395472,1780083040000,-500.0,0.00013287,2]
[423395467,1780083040000,-500.0,0.00013287,2]
[423395475,1780083040000,-500.0,0.00013287,2]
[423395498,1780083040000,-500.0,0.00013287,2]
[423395474,1780083040000,-500.0,0.00013287,2]
[423395486,1780083040000,-634.49,0.00013287,2]
[423395480,1780083040000,-500.0,0.00013287,2]
[423395478,1780083040000,-500.0,0.00013287,2]
[423395483,1780083040000,-500.0,0.00013287,2]
[423395482,1780083040000,-500.0,0.00013287,2]
[423395484,1780083040000,-503.87576626,0.00013287,2]
[423395481,1780083040000,-630.87,0.00013287,2]
[423395479,1780083040000,-502.14147158,0.00013287,2]
[423395477,1780083040000,-651.69,0.00013287,2]
[423395476,1780083040000,-500.0,0.00013287,2]
[423395485,1780083040000,-500.0,0.00013287,2]
[423395562,1780083041000,-527.07,0.0001356,2]
[423395567,1780083041000,-500.0,0.00013561,2]
[423395564,1780083041000,-398.82,0.00013561,2]
[423395566,1780083041000,-586.89,0.00013561,2]
[423395565,1780083041000,-500.0,0.00013561,2]
[423395555,1780083041000,-500.0,0.0001356,2]
[423395556,1780083041000,-500.0,0.0001356,2]
[423395560,1780083041000,-500.0,0.0001356,2]
[423395557,1780083041000,-1626.21,0.0001356,2]
[423395561,1780083041000,-549.73,0.0001356,2]
[423395559,1780083041000,-500.0,0.0001356,2]
[423395571,1780083041000,-651.69,0.00013561,2]
[423395563,1780083041000,-500.0,0.0001356,2]
[423395568,1780083041000,-500.0,0.00013561,2]
[423395587,1780083041000,-500.0,0.00013561,2]
[423395572,1780083041000,-500.0,0.00013561,2]
[423395575,1780083041000,-500.0,0.00013561,2]
[423395574,1780083041000,-630.87,0.00013561,2]
[423395573,1780083041000,-500.0,0.00013561,2]
[423395576,1780083041000,-500.0,0.00013561,2]
[423395577,1780083041000,-500.0,0.00013561,2]
[423395579,1780083041000,-500.0,0.00013561,2]
[423395578,1780083041000,-500.0,0.00013561,2]
[423395580,1780083041000,-500.0,0.00013561,2]
[423395581,1780083041000,-500.0,0.00013561,2]
[423395585,1780083041000,-508.76,0.00013561,2]
[423395589,1780083041000,-500.0,0.00013561,2]
[423395558,1780083041000,-614.07,0.0001356,2]
[423395570,1780083041000,-500.0,0.00013561,2]
[423395554,1780083041000,-1128.87,0.0001356,2]
[423395520,1780083041000,-152.0,0.00013294,7]
[423395551,1780083041000,-500.0,0.0001356,2]
[423395582,1780083041000,-500.0,0.00013561,2]
[423395522,1780083041000,-164.35015595,0.00013531,2]
[423395523,1780083041000,-500.0,0.00013559,2]
[423395519,1780083041000,-787.1,0.0001329,2]
[423395521,1780083041000,-152.0,0.00013294,7]
[423395524,1780083041000,-500.0,0.00013559,2]
[423395529,1780083041000,-536.45,0.00013559,2]
[423395527,1780083041000,-500.0,0.00013559,2]
[423395530,1780083041000,-524.47,0.00013559,2]
[423395526,1780083041000,-556.45,0.00013559,2]
[423395532,1780083041000,-500.0,0.00013559,2]
[423395525,1780083041000,-700.46,0.00013559,2]
[423395535,1780083041000,-500.0,0.00013559,2]
[423395545,1780083041000,-622.18,0.0001356,2]
[423395534,1780083041000,-1110.6,0.00013559,2]
[423395538,1780083041000,-253.46,0.00013559,2]
[423395537,1780083041000,-500.0,0.00013559,2]
[423395540,1780083041000,-500.0,0.0001356,2]
[423395552,1780083041000,-500.0,0.0001356,2]
[423395553,1780083041000,-500.0,0.0001356,2]
[423395541,1780083041000,-500.0,0.0001356,2]
[423395544,1780083041000,-500.0,0.0001356,2]
[423395546,1780083041000,-500.0,0.0001356,2]
[423395543,1780083041000,-500.0,0.0001356,2]
[423395548,1780083041000,-500.0,0.0001356,2]
[423395549,1780083041000,-500.0,0.0001356,2]
[423395547,1780083041000,-500.0,0.0001356,2]
[423395550,1780083041000,-500.0,0.0001356,2]
[423395536,1780083041000,-11228.46,0.00013559,2]
[423395586,1780083041000,-579.11,0.00013561,2]
[423395569,1780083041000,-500.0,0.00013561,2]
[423395583,1780083041000,-500.0,0.00013561,2]
[423395621,1780083041000,-500.0,0.00013834,2]
[423395623,1780083041000,-500.0,0.00013834,2]
[423395622,1780083041000,-500.0,0.00013834,2]
[423395624,1780083041000,-622.18,0.00013834,2]
[423395628,1780083041000,-500.0,0.00013834,2]
[423395626,1780083041000,-500.0,0.00013834,2]
[423395625,1780083041000,-500.0,0.00013834,2]
[423395627,1780083041000,-500.0,0.00013834,2]
[423395629,1780083041000,-500.0,0.00013834,2]
[423395630,1780083041000,-500.0,0.00013834,2]
[423395632,1780083041000,-500.0,0.00013834,2]
[423395634,1780083041000,-500.0,0.00013834,2]
[423395636,1780083041000,-1626.21,0.00013834,2]
[423395619,1780083041000,-500.0,0.00013833,2]
[423395638,1780083041000,-500.0,0.00013834,2]
[423395635,1780083041000,-500.0,0.00013834,2]
[423395639,1780083041000,-500.0,0.00013834,2]
[423395641,1780083041000,-527.07,0.00013834,2]
[423395633,1780083041000,-1128.87,0.00013834,2]
[423395642,1780083041000,-500.0,0.00013834,2]
[423395637,1780083041000,-614.07,0.00013834,2]
[423395640,1780083041000,-549.73,0.00013834,2]
[423395643,1780083041000,-500.0,0.00013835,2]
[423395645,1780083041000,-651.69,0.00013835,2]
[423395646,1780083041000,-500.0,0.00013835,2]
[423395647,1780083041000,-500.0,0.00013835,2]
[423395644,1780083041000,-500.0,0.00013835,2]
[423395588,1780083041000,-500.0,0.00013561,2]
[423395631,1780083041000,-500.0,0.00013834,2]
[423395620,1780083041000,-500.0,0.00013834,2]
[423395648,1780083041000,-630.87,0.00013835,2]
[423395614,1780083041000,-500.0,0.00013833,2]
[423395584,1780083041000,-500.0,0.00013561,2]
[423395590,1780083041000,-371.36,0.00013563,2]
[423395592,1780083041000,-813.47,0.00013564,2]
[423395591,1780083041000,-500.0,0.00013564,2]
[423395603,1780083041000,-411.120357,0.00013752,2]
[423395606,1780083041000,-267.61236595,0.000138,2]
[423395594,1780083041000,-500.0,0.00013564,2]
[423395605,1780083041000,-160.0,0.00013765,2]
[423395616,1780083041000,-500.0,0.00013833,2]
[423395593,1780083041000,-500.0,0.00013564,2]
[423395598,1780083041000,-500.0,0.00013564,2]
[423395595,1780083041000,-196.17,0.00013564,2]
[423395597,1780083041000,-523.94,0.00013564,2]
[423395596,1780083041000,-500.0,0.00013564,2]
[423395604,1780083041000,-160.0,0.00013765,2]
[423395600,1780083041000,-950.2,0.00013564,2]
[423395617,1780083041000,-5665.5989285,0.00013833,2]
[423395599,1780083041000,-500.0,0.00013564,2]